bitfinex/quotes_SOLUSD_20251115
["timestamp","ask_amount","ask_price","bid_price","bid_amount"]
[1763222705647,2.522931,141.9,141.86,0.66]
[1763222705942,1.862931,141.89,141.84,61.8]
[1763222706143,2.522931,141.89,141.84,62.46]
[1763222706350,2.522931,141.89,141.85,0.66]
[1763222707555,1.862931,141.9,141.85,2.522931]
[1763222707723,1.862931,141.91,141.86,1.862931]
[1763222707924,1.862931,141.91,141.86,9.57185137]
[1763222708144,0.66,141.92,141.87,2.522931]
[1763222708341,1.862931,141.92,141.87,2.522931]
[1763222708540,2.522931,141.92,141.88,0.66]
[1763222708952,1.862931,141.92,141.88,0.66]
[1763222709151,0.66,141.91,141.88,0.66]
[1763222709355,2.522931,141.91,141.88,0.66]
[1763222709541,1.862931,141.92,141.88,0.66]
[1763222709737,0.66,141.91,141.88,0.66]
[1763222710253,50.0,141.97,141.88,0.66]
[1763222710254,0.2,142.01,141.9,1.862931]
[1763222710429,1.862931,141.95,141.91,0.66]
[1763222710754,1.862931,141.94,141.91,0.66]
[1763222711353,2.552931,141.93,141.88,9.61100723]
[1763222711659,2.552931,141.93,141.88,8.91111964]
[1763222711830,2.552931,141.93,141.89,0.7]
[1763222714030,1.862931,141.93,141.89,0.7]
[1763222714565,1.862931,141.93,141.88,8.91111964]
[1763222714737,2.562931,141.93,141.89,0.72]
[1763222714942,1.862931,141.93,141.89,0.72]
[1763222715265,2.562931,141.93,141.89,0.72]
[1763222715567,2.562931,141.92,141.88,0.72]
[1763222715766,2.562931,141.92,141.87,1.862931]
[1763222715970,2.562931,141.91,141.87,64.382931]
[1763222716165,1.862931,141.9,141.87,61.8]
[1763222716333,2.562931,141.9,141.85,71.43262171]
[1763222716533,2.562931,141.9,141.86,0.72]
[1763222716983,1.862931,141.9,141.86,0.72]
[1763222717279,2.562931,141.9,141.86,0.72]
[1763222718881,9.78882769,141.95,141.85,61.8]
[1763222718882,1.862931,141.88,141.85,61.8]
[1763222719076,0.7,141.89,141.85,62.52]
[1763222719385,1.862931,141.88,141.85,62.52]
[1763222719550,1.862931,141.87,141.83,0.72]
[1763222719745,1.862931,141.87,141.84,0.72]
[1763222720153,1.862931,141.88,141.84,0.72]
[1763222720347,2.562931,141.88,141.83,1.862931]
[1763222720584,25.214131,141.87,141.84,0.72]
[1763222720763,24.514131,141.87,141.84,0.72]
[1763222721276,1.862931,141.88,141.84,2.582931]
[1763222721782,1.862931,141.88,141.85,0.72]
[1763222722090,1.862931,141.87,141.85,0.72]
[1763222722289,1.862931,141.88,141.85,0.72]
[1763222723383,25.214131,141.89,141.85,0.72]
[1763222723678,24.514131,141.89,141.85,7.76956672]
[1763222724054,24.514131,141.89,141.86,0.72]
[1763222726554,22.6512,141.89,141.86,0.72]
[1763222726756,1.862931,141.92,141.87,1.862931]
[1763222726984,1.862931,141.92,141.87,63.662931]
[1763222727185,1.862931,141.91,141.88,0.72]
[1763222727394,1.862931,141.9,141.88,0.72]
[1763222727757,1.862931,141.91,141.88,0.72]
[1763222730177,2.562931,141.92,141.88,0.72]
[1763222730365,24.514131,141.92,141.88,0.72]
[1763222730570,22.6512,141.92,141.88,9.63111564]
[1763222731070,24.514131,141.92,141.89,0.72]
[1763222731464,25.214131,141.92,141.89,0.72]
[1763222731865,25.214131,141.92,141.87,8.91146627]
[1763222731866,2.562931,141.91,141.87,0.72]
[1763222732271,1.862931,141.9,141.86,68.84907417]
[1763222732563,2.562931,141.9,141.86,61.8]
[1763222732758,2.562931,141.9,141.86,62.52]
[1763222733084,2.562931,141.9,141.86,69.56919416]
[1763222733387,1.862931,141.89,141.86,62.52]
[1763222733564,1.862931,141.89,141.86,0.72]
[1763222734364,2.562931,141.9,141.86,0.72]
[1763222734697,1.862931,141.88,141.84,62.52]
[1763222734992,1.862931,141.88,141.84,0.72]
[1763222735294,2.562931,141.88,141.84,0.72]
[1763222735472,2.562931,141.88,141.84,7.77012518]
[1763222735668,1.862931,141.88,141.84,0.72]
[1763222735874,2.562931,141.87,141.82,64.382931]
[1763222736199,25.214131,141.87,141.82,64.382931]
[1763222736378,25.214131,141.87,141.83,0.72]
[1763222736569,2.562931,141.86,141.81,1.862931]
[1763222736769,2.562931,141.86,141.81,2.582931]
[1763222736996,0.7,141.85,141.81,2.582931]
[1763222737389,2.562931,141.85,141.81,2.582931]
[1763222737573,1.862931,141.85,141.81,8.91443859]
[1763222737775,2.562931,141.86,141.82,0.72]
[1763222738183,2.562931,141.86,141.8,61.8]
[1763222738184,1.862931,141.83,141.79,61.8]
[1763222738383,1.862931,141.83,141.79,0.72]
[1763222738606,1.862931,141.83,141.78,1.862931]
[1763222738906,22.6512,141.87,141.8,0.72]
[1763222738907,24.514131,141.84,141.8,0.72]
[1763222739209,1.862931,141.83,141.79,0.72]
[1763222739498,2.562931,141.83,141.79,0.72]
[1763222739800,1.862931,141.82,141.79,0.72]
[1763222740099,2.562931,141.82,141.78,7.77310193]
[1763222740297,1.862931,141.82,141.79,0.72]
[1763222740601,1.862931,141.83,141.79,0.72]
[1763222740898,2.562931,141.83,141.79,0.72]
[1763222742189,0.7,141.82,141.79,0.72]
[1763222742399,0.7,141.82,141.78,9.63603293]
[1763222742699,0.7,141.82,141.79,0.72]
[1763222744596,2.522931,141.83,141.79,0.72]
[1763222746378,0.66,141.82,141.79,0.72]
[1763222748598,1.862931,141.83,141.79,0.72]
[1763222748789,2.522931,141.83,141.79,0.72]
[1763222749705,2.522931,141.83,141.79,62.52]
[1763222751607,0.66,141.82,141.79,57.573]
[1763222753799,0.66,141.82,141.79,58.263]
[1763222754004,0.66,141.82,141.79,65.31561971]
[1763222754203,0.66,141.82,141.79,67.17855071]
[1763222754994,0.66,141.82,141.79,68.23058145]
[1763222755206,13.36378943,141.87,141.81,2.91496174]
[1763222755490,0.66,141.86,141.83,2.91496174]
[1763222755906,3.57496174,141.86,141.81,3.60496174]
[1763222756217,3.57496174,141.86,141.82,0.69]
[1763222756416,2.91496174,141.86,141.82,0.69]
[1763222756611,3.57496174,141.86,141.82,0.69]
[1763222756811,0.66,141.86,141.83,2.91496174]
[1763222757032,0.66,141.86,141.82,3.60496174]
[1763222757215,3.57496174,141.86,141.82,3.60496174]
[1763222757934,0.66,141.86,141.82,3.60496174]
[1763222758727,22.6512,141.87,141.83,2.91496174]
[1763222759040,0.66,141.88,141.84,2.91496174]
[1763222759338,0.66,141.88,141.84,3.60496174]
[1763222759541,3.57496174,141.88,141.84,3.60496174]
[1763222760145,3.57496174,141.87,141.82,71.76567983]
[1763222760340,3.57496174,141.87,141.84,0.69]
[1763222761861,5.82992348,141.85,141.78,22.6512]
[1763222762065,5.82992348,141.85,141.74,0.1]
[1763222762066,2.91496174,141.79,141.74,0.1]
[1763222762259,25.56616174,141.76,141.74,0.1]
[1763222762444,22.6512,141.76,141.74,0.1]
[1763222762635,58.70502687,141.76,141.74,0.1]
[1763222762835,32.76096973,141.78,141.75,0.79]
[1763222763150,22.97214204,141.78,141.75,0.79]
[1763222763554,26.54710378,141.78,141.75,0.1]
[1763222763737,22.97214204,141.78,141.75,0.1]
[1763222763933,22.97214204,141.78,141.75,0.79]
[1763222764557,2.91496174,141.76,141.75,0.1]
[1763222764750,0.66,141.77,141.75,0.1]
[1763222764955,22.97214204,141.78,141.75,0.79]
[1763222765153,25.88710378,141.78,141.75,0.79]
[1763222765452,25.88710378,141.78,141.75,0.1]
[1763222765758,23.63214204,141.78,141.75,0.1]
[1763222766159,26.54710378,141.78,141.75,0.1]
[1763222766348,23.63214204,141.78,141.75,0.1]
[1763222766549,26.54710378,141.78,141.75,0.1]
[1763222766865,2.91496174,141.77,141.75,0.1]
[1763222767235,23.63214204,141.78,141.75,0.1]
[1763222767236,0.66,141.76,141.75,0.1]
[1763222767437,0.66,141.76,141.7,0.1]
[1763222767438,22.6512,141.74,141.7,0.1]
[1763222767743,2.91496174,141.71,141.7,0.1]
[1763222768142,3.57496174,141.71,141.7,0.1]
[1763222769350,13.36378943,141.71,141.7,0.1]
[1763222774262,13.36378943,141.71,141.69,0.1]
[1763222774263,9.78882769,141.7,141.69,0.1]
[1763222774455,13.35378943,141.7,141.69,0.1]
[1763222775342,32.44002769,141.68,141.67,0.1]
[1763222775755,25.56616174,141.68,141.67,0.1]
[1763222776051,25.56616174,141.68,141.67,0.76]
[1763222776257,2.91496174,141.71,141.67,0.76]
[1763222777068,2.91496174,141.7,141.67,0.76]
[1763222777248,2.91496174,141.69,141.67,0.1]
[1763222777451,2.91496174,141.68,141.67,0.1]
[1763222777644,26.21616174,141.68,141.67,0.1]
[1763222778074,36.00498943,141.68,141.67,0.1]
[1763222779753,38.91995117,141.68,141.65,0.1]
[1763222780083,38.26995117,141.66,141.65,0.1]
[1763222780264,38.26995117,141.66,141.55,0.1]
[1763222780466,2.91496174,141.56,141.55,0.1]
[1763222781070,7.24644729,141.56,141.55,0.1]
[1763222781287,22.6512,141.53,141.47,2.91496174]
[1763222781448,22.6512,141.49,141.43,0.66]
[1763222781643,9.78882769,141.53,141.48,7.24644729]
[1763222781865,29.89764729,141.56,141.51,7.24644729]
[1763222782070,1.99999999,141.66,141.53,7.24644729]
[1763222782071,7.24644729,141.57,141.53,7.24644729]
[1763222782263,9.78882769,141.57,141.54,0.66]
[1763222782463,9.78882769,141.59,141.55,7.24644729]
[1763222782673,17.03527498,141.59,141.54,0.66]
[1763222782872,17.03527498,141.59,141.54,7.90644729]
[1763222783077,22.6512,141.62,141.55,7.24644729]
[1763222783249,9.78882769,141.59,141.5,22.6512]
[1763222783449,7.24644729,141.58,141.54,0.66]
[1763222783764,7.24644729,141.59,141.54,0.66]
[1763222783965,7.24644729,141.58,141.54,0.66]
[1763222784163,29.89764729,141.57,141.54,0.66]
[1763222784372,7.24644729,141.55,141.5,0.66]
[1763222784676,7.24644729,141.54,141.48,7.90644729]
[1763222784883,7.24644729,141.53,141.48,0.66]
[1763222785066,7.24644729,141.5,141.46,0.66]
[1763222785455,7.24644729,141.49,141.46,0.66]
[1763222785651,0.65,141.52,141.42,7.07100813]
[1763222785652,7.24644729,141.47,141.42,7.07100813]
[1763222785857,7.24644729,141.45,141.4,7.24644729]
[1763222786064,7.24644729,141.43,141.38,7.24644729]
[1763222786272,7.24644729,141.43,141.39,0.66]
[1763222786570,7.24644729,141.45,141.4,7.24644729]
[1763222786775,7.24644729,141.44,141.4,0.66]
[1763222787554,7.24644729,141.43,141.4,0.66]
[1763222787882,23.3012,141.46,141.4,0.66]
[1763222788482,22.6512,141.46,141.41,7.24644729]
[1763222788783,7.24644729,141.44,141.4,0.66]
[1763222789072,7.24644729,141.43,141.4,0.66]
[1763222790148,7.24644729,141.43,141.41,0.66]
[1763222791275,7.24644729,141.42,141.38,0.66]
[1763222791481,7.24644729,141.39,141.35,0.66]
[1763222791656,7.24644729,141.38,141.35,0.66]
[1763222792065,7.24644729,141.37,141.33,0.66]
[1763222792264,7.24644729,141.35,141.31,0.66]
[1763222792466,7.24644729,141.37,141.32,7.24644729]
[1763222792708,7.24644729,141.37,141.33,0.66]
[1763222793189,9.78882769,141.42,141.33,7.90644729]
[1763222793190,0.65,141.41,141.33,7.90644729]
[1763222793378,22.6512,141.44,141.36,7.24644729]
[1763222793687,7.24644729,141.4,141.36,7.24644729]
[1763222793866,7.24644729,141.4,141.37,0.66]
[1763222794389,7.24644729,141.41,141.37,7.90644729]
[1763222794586,7.24644729,141.45,141.4,7.24644729]
[1763222794783,0.65,141.48,141.42,7.24644729]
[1763222794990,7.24644729,141.49,141.44,7.24644729]
[1763222795365,7.24644729,141.49,141.45,0.66]
[1763222795565,7.24644729,141.48,141.45,0.66]
[1763222795770,17.03527498,141.52,141.43,0.66]
[1763222795771,7.24644729,141.47,141.43,0.66]
[1763222796693,7.89644729,141.46,141.4,7.90644729]
[1763222796985,33.09002769,141.49,141.41,0.66]
[1763222797192,7.24644729,141.46,141.41,7.90644729]
[1763222797587,29.89764729,141.48,141.43,7.24644729]
[1763222797797,7.24644729,141.48,141.43,7.24644729]
[1763222797977,7.24644729,141.48,141.44,0.66]
[1763222798182,29.89764729,141.49,141.44,7.90644729]
[1763222798383,7.24644729,141.48,141.45,0.66]
[1763222799669,7.24644729,141.47,141.42,0.66]
[1763222799888,7.24644729,141.47,141.43,0.66]
[1763222800196,7.24644729,141.48,141.43,7.90644729]
[1763222800392,7.24644729,141.48,141.41,24.75055416]
[1763222800393,7.24644729,141.45,141.41,0.66]
[1763222800893,7.24644729,141.45,141.37,24.75755582]
[1763222800894,7.24644729,141.42,141.36,0.66]
[1763222801098,0.65,141.46,141.39,7.24644729]
[1763222801286,7.24644729,141.43,141.39,7.24644729]
[1763222801601,7.24644729,141.41,141.35,24.76083837]
[1763222801814,7.24644729,141.42,141.39,0.66]
[1763222802272,7.24644729,141.41,141.36,7.24644729]
[1763222802471,7.24644729,141.41,141.36,7.90644729]
[1763222802672,7.24644729,141.41,141.37,0.66]
[1763222802983,7.24644729,141.41,141.37,7.73351548]
[1763222803399,7.24644729,141.41,141.38,0.72]
[1763222805699,7.24644729,141.41,141.35,37.69211136]
[1763222805700,7.24644729,141.4,141.35,37.69211136]
[1763222805899,7.24644729,141.4,141.36,7.96644729]
[1763222806392,7.24644729,141.4,141.37,0.72]
[1763222807409,0.66,141.43,141.37,0.72]
[1763222807607,7.24644729,141.4,141.37,0.72]
[1763222807817,0.66,141.43,141.34,7.24644729]
[1763222807818,7.24644729,141.38,141.34,7.24644729]
[1763222808025,7.24644729,141.37,141.32,7.24644729]
[1763222808318,9.78882769,141.4,141.32,15.0424072]
[1763222808516,7.24644729,141.37,141.33,15.04200643]
[1763222808733,7.24644729,141.36,141.29,7.07764172]
[1763222809010,7.24644729,141.33,141.29,0.72]
[1763222809316,7.24644729,141.34,141.3,0.72]
[1763222810107,7.24644729,141.33,141.3,0.72]
[1763222810815,0.66,141.36,141.3,7.79712131]
[1763222811006,7.24644729,141.34,141.3,7.79712131]
[1763222811204,7.24644729,141.33,141.3,7.79712131]
[1763222811601,7.24644729,141.34,141.3,7.07712131]
[1763222811802,7.24644729,141.34,141.31,0.72]
[1763222812005,7.24644729,141.35,141.31,0.72]
[1763222812198,50.0,141.41,141.34,7.24644729]
[1763222812199,0.66,141.41,141.34,7.24644729]
[1763222812402,7.24644729,141.38,141.34,7.24644729]
[1763222812695,7.24644729,141.38,141.34,0.72]
[1763222813014,7.24644729,141.38,141.35,0.72]
[1763222813802,7.24644729,141.37,141.35,0.72]
[1763222814001,7.24644729,141.37,141.3,22.6512]
[1763222814002,7.24644729,141.36,141.3,22.6512]
[1763222814313,7.24644729,141.35,141.31,0.72]
[1763222814490,7.24644729,141.35,141.33,22.6512]
[1763222814687,7.24644729,141.35,141.33,23.3712]
[1763222814892,7.24644729,141.36,141.33,23.3712]
[1763222815232,10.44882769,141.42,141.35,7.24644729]
[1763222815391,7.24644729,141.4,141.36,29.89764729]
[1763222815922,7.24644729,141.4,141.37,0.72]
[1763222816121,7.24644729,141.44,141.37,0.72]
[1763222816424,7.24644729,141.41,141.37,0.72]
[1763222816804,7.24644729,141.41,141.37,7.79328087]
[1763222817113,4.56154898,141.41,141.37,12.35482985]
[1763222817315,4.56154898,141.42,141.38,0.72]
[1763222817700,4.56154898,141.41,141.38,0.72]
[1763222817900,4.56154898,141.42,141.38,5.28154898]
[1763222818230,4.56154898,141.43,141.39,0.72]
[1763222818600,32.44002769,141.46,141.39,0.72]
[1763222818800,0.66,141.46,141.4,7.07213578]
[1763222819012,4.56154898,141.44,141.4,7.07213578]
[1763222819199,4.56154898,141.44,141.4,7.79213578]
[1763222819391,4.56154898,141.45,141.41,0.72]
[1763222820399,4.56154898,141.44,141.41,0.72]
[1763222820600,4.56154898,141.45,141.41,0.72]
[1763222820806,4.56154898,141.46,141.42,7.07113562]
[1763222821009,10.44882769,141.5,141.43,4.56154898]
[1763222821201,4.56154898,141.47,141.43,5.28154898]
[1763222821615,4.56154898,141.45,141.41,0.72]
[1763222821816,4.56154898,141.44,141.4,11.63368476]
[1763222821994,5.22154898,141.46,141.42,4.56154898]
[1763222822193,22.6512,141.48,141.43,4.56154898]
[1763222822395,4.56154898,141.47,141.4,22.6512]
[1763222822597,4.56154898,141.42,141.38,0.72]
[1763222822897,0.66,141.46,141.4,4.56154898]
[1763222823104,4.56154898,141.45,141.4,4.56154898]
[1763222823308,4.56154898,141.45,141.41,0.72]
[1763222823525,4.56154898,141.46,141.41,0.72]
[1763222824022,27.87274898,141.47,141.41,5.28154898]
[1763222824225,4.56154898,141.47,141.42,5.28154898]
[1763222824412,4.56154898,141.46,141.42,0.72]
[1763222824612,4.56154898,141.46,141.43,0.72]
[1763222825025,4.56154898,141.44,141.38,0.72]
[1763222825205,0.66,141.45,141.39,0.72]
[1763222825206,4.56154898,141.42,141.39,0.72]
[1763222826121,4.56154898,141.41,141.37,0.72]
[1763222826313,4.56154898,141.4,141.37,0.72]
[1763222826616,4.56154898,141.39,141.37,0.72]
[1763222827125,4.56154898,141.38,141.35,0.72]
[1763222827320,0.66,141.41,141.35,0.72]
[1763222827508,4.56154898,141.39,141.35,0.72]
[1763222828011,4.56154898,141.38,141.35,0.72]
[1763222828923,4.56154898,141.39,141.35,0.72]
[1763222829104,4.56154898,141.39,141.35,7.79420943]
[1763222829306,4.56154898,141.39,141.36,0.72]
[1763222829631,4.56154898,141.39,141.34,7.07500033]
[1763222829932,4.56154898,141.38,141.35,0.72]
[1763222830509,0.66,141.41,141.35,5.28154898]
[1763222830704,4.56154898,141.4,141.35,5.28154898]
[1763222830911,4.56154898,141.41,141.36,5.28154898]
[1763222831124,4.56154898,141.4,141.36,7.79390458]
[1763222831407,4.56154898,141.4,141.36,7.07390458]
[1763222831720,4.56154898,141.4,141.37,0.72]
[1763222831925,0.66,141.42,141.37,0.72]
[1763222831926,4.56154898,141.41,141.37,0.72]
[1763222832121,4.56154898,141.43,141.38,4.56154898]
[1763222832534,4.56154898,141.44,141.39,5.27154898]
[1763222832707,4.56154898,141.45,141.4,4.56154898]
[1763222832907,4.56154898,141.45,141.4,5.27154898]
[1763222833123,4.56154898,141.45,141.41,12.32272169]
[1763222833326,4.56154898,141.46,141.41,12.32272169]
[1763222833525,4.56154898,141.46,141.42,0.69]
[1763222833733,4.56154898,141.46,141.41,24.75026188]
[1763222833931,4.56154898,141.45,141.42,0.69]
[1763222834630,4.56154898,141.45,141.41,11.63272169]
[1763222834631,5.24154898,141.45,141.41,7.07117271]
[1763222834836,4.56154898,141.45,141.41,7.76117271]
[1763222835507,4.56154898,141.45,141.41,0.69]
[1763222835705,5.24154898,141.44,141.39,5.25154898]
[1763222836116,5.24154898,141.44,141.4,0.69]
[1763222836317,4.56154898,141.43,141.4,0.69]
[1763222836726,0.68,141.44,141.4,0.69]
[1763222836918,4.56154898,141.43,141.38,4.56154898]
[1763222837122,4.56154898,141.43,141.39,7.07263597]
[1763222837336,4.56154898,141.43,141.39,7.76263597]
[1763222837536,4.56154898,141.44,141.4,0.69]
[1763222837715,0.68,141.47,141.4,5.25154898]
[1763222837916,4.56154898,141.45,141.4,5.25154898]
[1763222838132,4.56154898,141.45,141.4,4.56154898]
[1763222838332,4.56154898,141.45,141.41,0.69]
[1763222838731,4.56154898,141.43,141.38,0.69]
[1763222838913,4.56154898,141.43,141.38,12.32468393]
[1763222839112,5.24154898,141.43,141.39,0.69]
[1763222839633,4.56154898,141.42,141.39,0.69]
[1763222839842,5.24154898,141.42,141.37,7.76342019]
[1763222840136,5.24154898,141.42,141.38,0.69]
[1763222840330,4.56154898,141.42,141.38,0.69]
[1763222841335,0.68,141.43,141.38,7.76313608]
[1763222841526,5.24154898,141.43,141.38,12.32468506]
[1763222842242,5.24154898,141.43,141.39,0.69]
[1763222843248,5.24154898,141.43,141.38,7.07313608]
[1763222843420,5.24154898,141.43,141.38,7.76313608]
[1763222843935,5.24154898,141.42,141.38,0.69]
[1763222844237,4.56154898,141.42,141.38,0.69]
[1763222844550,5.24154898,141.42,141.38,0.69]
[1763222844953,4.56154898,141.41,141.38,0.69]
[1763222845249,5.24154898,141.4,141.36,23.3412]
[1763222845456,5.24154898,141.4,141.36,30.41532968]
[1763222845658,4.56154898,141.4,141.36,30.41532968]
[1763222845959,4.56154898,141.4,141.36,29.72532968]
[1763222846141,4.56154898,141.4,141.37,0.69]
[1763222846346,5.24154898,141.4,141.37,0.69]
[1763222846542,4.56154898,141.4,141.37,0.69]
[1763222846738,5.24154898,141.41,141.37,7.76361161]
[1763222847959,4.56154898,141.42,141.38,0.69]
[1763222848136,4.56154898,141.43,141.38,5.25154898]
[1763222848456,4.56154898,141.44,141.39,4.56154898]
[1763222848657,4.56154898,141.44,141.39,12.3239506]
[1763222848955,4.56154898,141.44,141.4,0.69]
[1763222849144,5.24154898,141.44,141.4,0.69]
[1763222849455,4.56154898,141.44,141.4,0.69]
[1763222850667,5.24154898,141.43,141.38,12.32454007]
[1763222850860,5.24154898,141.43,141.37,0.69]
[1763222850861,4.56154898,141.42,141.37,0.69]
[1763222851159,4.56154898,141.4,141.35,0.69]
[1763222851356,4.56154898,141.38,141.33,5.25154898]
[1763222851740,4.56154898,141.38,141.34,0.69]
[1763222853763,22.6512,141.4,141.3,5.25154898]
[1763222853764,4.56154898,141.35,141.3,5.25154898]
[1763222854063,4.56154898,141.33,141.28,4.56154898]
[1763222854251,4.56154898,141.32,141.28,0.69]
[1763222854454,4.56154898,141.33,141.28,5.25154898]
[1763222854653,4.56154898,141.31,141.27,0.42520024]
[1763222854853,4.56154898,141.31,141.24,7.50766984]
[1763222855044,5.24154898,141.31,141.26,4.56154898]
[1763222855242,5.24154898,141.31,141.26,0.42040047]
[1763222855469,5.24154898,141.31,141.24,7.08004851]
[1763222855470,5.18152319,141.28,141.24,0.42762133]
[1763222855786,4.56154898,141.27,141.24,0.42762133]
[1763222856074,4.56154898,141.28,141.24,1.11762133]
[1763222856564,4.56154898,141.26,141.23,0.52768096]
[1763222856939,4.44149738,141.25,141.23,0.1]
[1763222857151,0.68,141.32,141.24,0.69]
[1763222857348,4.56154898,141.29,141.24,5.25154898]
[1763222857563,4.56154898,141.29,141.23,7.1806219]
[1763222857849,4.56154898,141.27,141.24,0.69]
[1763222858175,4.56154898,141.28,141.24,0.69]
[1763222858554,4.56154898,141.29,141.24,5.25154898]
[1763222858760,4.56154898,141.3,141.25,11.64081483]
[1763222859067,4.56154898,141.29,141.25,0.69]
[1763222859267,23.3312,141.31,141.25,0.69]
[1763222859455,4.56154898,141.28,141.23,7.87050901]
[1763222859658,4.56154898,141.28,141.23,12.43205799]
[1763222859865,4.56154898,141.28,141.24,0.69]
[1763222860585,4.56154898,141.29,141.24,5.25154898]
[1763222860774,4.56154898,141.29,141.25,7.07964601]
[1763222861080,4.56154898,141.3,141.25,12.33119499]
[1763222861276,4.56154898,141.3,141.26,0.69]
[1763222861663,4.56154898,141.29,141.25,12.33119499]
[1763222861865,4.56154898,141.29,141.23,17.80162146]
[1763222861866,0.68,141.3,141.26,0.69]
[1763222862046,0.68,141.3,141.24,5.25154898]
[1763222862047,4.56154898,141.29,141.24,5.25154898]
[1763222862383,4.56154898,141.28,141.24,0.69]
[1763222862677,4.56154898,141.28,141.25,0.69]
[1763222862887,4.56154898,141.26,141.23,0.1]
[1763222863056,0.68,141.27,141.23,0.1]
[1763222863377,5.24154898,141.27,141.23,0.82]
[1763222863580,5.24154898,141.27,141.23,0.1]
[1763222863789,0.7,141.27,141.23,0.82]
[1763222863952,4.56154898,141.26,141.23,0.1]
[1763222864280,0.7,141.27,141.23,0.1]
[1763222864484,22.6512,141.28,141.23,0.1]
[1763222864663,4.56154898,141.26,141.23,0.1]
[1763222864865,0.7,141.27,141.23,0.1]
[1763222865188,4.56154898,141.25,141.23,0.1]
[1763222865355,59.78882769,141.28,141.2,0.1]
[1763222865553,4.56154898,141.21,141.2,0.1]
[1763222865891,4.56154898,141.26,141.2,0.1]
[1763222866088,4.56154898,141.26,141.2,7.90207296]
[1763222866089,0.7,141.26,141.2,7.90207296]
[1763222866394,0.7,141.26,141.2,0.1]
[1763222866395,22.6512,141.24,141.2,0.1]
[1763222866556,4.56154898,141.21,141.2,0.1]
[1763222866971,5.26154898,141.21,141.2,0.1]
[1763222867188,4.56154898,141.21,141.2,0.1]
[1763222867578,50.0,141.29,141.2,4.66154898]
[1763222867772,4.56154898,141.26,141.22,4.56154898]
[1763222868088,4.56154898,141.26,141.21,0.72]
[1763222868296,4.56154898,141.26,141.21,5.28154898]
[1763222868464,4.56154898,141.25,141.21,0.72]
[1763222868766,4.56154898,141.26,141.22,0.72]
[1763222868960,0.7,141.27,141.22,5.28154898]
[1763222869188,5.26154898,141.27,141.22,5.28154898]
[1763222869382,4.56154898,141.27,141.23,0.72]
[1763222869782,5.26154898,141.27,141.22,5.28154898]
[1763222869985,4.56154898,141.26,141.23,0.72]
[1763222870910,4.56154898,141.27,141.23,0.72]
[1763222871223,4.56154898,141.25,141.16,16.91306127]
[1763222871392,4.56154898,141.23,141.18,4.56154898]
[1763222871591,0.7,141.26,141.19,4.56154898]
[1763222871799,4.56154898,141.24,141.19,4.56154898]
[1763222872113,23.3512,141.29,141.19,4.56154898]
[1763222872294,4.56154898,141.26,141.21,4.56154898]
[1763222872493,22.6512,141.29,141.21,4.56154898]
[1763222872706,23.3512,141.3,141.23,4.56154898]
[1763222872882,4.56154898,141.28,141.23,4.56154898]
[1763222873288,5.26154898,141.28,141.23,5.28154898]
[1763222873490,4.56154898,141.27,141.23,5.28154898]
[1763222873717,4.56154898,141.25,141.2,4.56154898]
[1763222873909,4.56154898,141.24,141.19,5.28154898]
[1763222874214,4.56154898,141.23,141.19,0.72]
[1763222874417,4.56154898,141.2,141.15,0.82]
[1763222874598,4.56154898,141.2,141.15,5.38154898]
[1763222875200,4.56154898,141.2,141.16,0.72]
[1763222875823,4.56154898,141.2,141.16,5.28154898]
[1763222876312,4.56154898,141.19,141.15,0.1]
[1763222876526,0.7,141.22,141.16,4.56154898]
[1763222876821,0.7,141.22,141.15,0.82]
[1763222876822,4.56154898,141.2,141.15,5.38154898]
[1763222877319,4.56154898,141.2,141.16,0.72]
[1763222878122,4.56154898,141.17,141.15,0.1]
[1763222878339,5.1451862,141.16,141.15,0.1]